fUSD/lending_fUSD_20250105
["ID","MTS","AMOUNT","RATE_DAILY","PERIOD"]
[347673699,1736049045362,-500.0,0.00010408,2]
[347673700,1736049045371,-500.0,0.00010408,2]
[347673701,1736049045381,-222.31621464,0.00010408,2]
[347673702,1736049045392,-500.0,0.00010408,2]
[347673703,1736049045402,-500.0,0.00010408,2]
[347673704,1736049045412,-629.43,0.00010408,2]
[347673705,1736049045422,-467.6775002,0.00010408,2]
[347673706,1736049045431,-844.85,0.00010408,2]
[347673707,1736049045442,-400.63029969,0.00010408,2]
[347673708,1736049045452,-500.0,0.00010408,2]
[347673709,1736049045462,-745.57,0.00010408,2]
[347673710,1736049045471,-500.0,0.00010408,2]
[347673711,1736049045481,-500.0,0.00010408,2]
[347673712,1736049045490,-500.0,0.00010408,2]
[347673713,1736049045499,-500.0,0.00010408,2]
[347673714,1736049045509,-500.0,0.00010408,2]
[347673715,1736049045519,-1245.59,0.00010408,2]
[347673716,1736049045529,-500.0,0.00010408,2]
[347673717,1736049045539,-500.0,0.00010408,2]
[347673718,1736049045549,-500.0,0.00010408,2]
[347673719,1736049045559,-662.33,0.00010408,2]
[347673720,1736049045569,-444.95281801,0.00010408,2]
[347673721,1736049045579,-500.0,0.00010408,2]
[347673722,1736049045589,-500.0,0.00010408,2]
[347673723,1736049045600,-391.46,0.00010408,2]
[347673724,1736049045609,-1360.61,0.00010408,2]
[347673725,1736049045618,-1506.11,0.00010408,2]
[347673726,1736049045628,-355.49713559,0.00010408,2]
[347673727,1736049045637,-482.22309019,0.00010408,2]
[347673728,1736049045647,-500.0,0.00010408,2]
[347673729,1736049045657,-436.98618577,0.00010408,2]
[347673730,1736049045667,-448.96916,0.00010408,2]
[347673731,1736049045677,-1276.2,0.00010408,2]
[347673732,1736049045686,-408.08349516,0.00010408,2]
[347673733,1736049045697,-500.0,0.00010408,2]
[347673734,1736049045706,-500.0,0.00010408,2]
[347673735,1736049045715,-500.0,0.00010408,2]
[347673736,1736049045725,-500.0,0.00010408,2]
[347673737,1736049045734,-227.47136981,0.00010408,2]
[347673738,1736049045744,-500.0,0.00010408,2]
[347673739,1736049045754,-500.0,0.00010408,2]
[347673740,1736049045765,-500.0,0.00010408,2]
[347673741,1736049045776,-500.0,0.00010408,2]
[347673742,1736049045786,-348.90604094,0.00010408,2]
[347673743,1736049045797,-500.0,0.00010408,2]
[347673744,1736049045808,-500.0,0.00010408,2]
[347673745,1736049045820,-500.0,0.00010408,2]
[347673746,1736049045833,-650.28,0.00010408,2]
[347673747,1736049045845,-500.0,0.00010408,2]
[347673748,1736049045854,-739.47,0.00010408,2]
[347673749,1736049045863,-500.0,0.00010408,2]
[347673750,1736049045873,-628.95996421,0.00010408,2]
[347673751,1736049045883,-310.88429978,0.00010408,2]
[347673752,1736049045892,-904.6,0.00010408,2]
[347673753,1736049045903,-248.82984136,0.00010408,2]
[347673754,1736049045912,-500.0,0.00010409,2]
[347673755,1736049045922,-500.0,0.00010409,2]
[347673756,1736049045932,-603.86292264,0.00010409,2]
[347673757,1736049045941,-500.0,0.00010409,2]
[347673758,1736049045952,-500.0,0.00010409,2]
[347673759,1736049045964,-408.40639327,0.00010409,2]
[347673760,1736049045973,-195.14894467,0.00010409,2]
[347673761,1736049045983,-491.90500129,0.00010409,2]
[347673762,1736049045992,-244.97550206,0.00010409,2]
[347673763,1736049046002,-500.0,0.00010409,2]
[347673764,1736049046012,-638.63,0.00010409,2]
[347673765,1736049046021,-234.11214238,0.00010409,2]
[347673766,1736049046031,-500.0,0.00010409,2]
[347673767,1736049046040,-542.68,0.00010409,2]
[347673768,1736049046050,-500.0,0.00010409,2]
[347673769,1736049046059,-344.45840582,0.00010409,2]
[347673770,1736049046069,-500.0,0.00010409,2]
[347673771,1736049046078,-638.57767602,0.00010409,2]
[347673772,1736049046087,-500.0,0.00010409,2]
[347673773,1736049046096,-399.43,0.00010409,2]
[347673774,1736049046105,-332.73926405,0.00010409,2]
[347673775,1736049046114,-519.12,0.00010409,2]
[347673776,1736049046124,-500.0,0.00010409,2]
[347673777,1736049046133,-216.8,0.00010409,2]
[347673779,1736049046143,-530.26843866,0.00010409,2]
[347673780,1736049046152,-500.0,0.00010409,2]
[347673781,1736049046163,-500.0,0.00010409,2]
[347673782,1736049046173,-569.13494518,0.00010409,2]
[347673783,1736049046182,-190.32387335,0.00010409,2]
[347673784,1736049046193,-500.0,0.00010409,2]
[347673785,1736049046202,-487.20716959,0.00010409,2]
[347673786,1736049046212,-488.13,0.00010409,2]
[347673787,1736049046222,-425.73030868,0.00010409,2]
[347673788,1736049046231,-469.06647691,0.00010409,2]
[347673789,1736049046241,-364.55458298,0.00010409,2]
[347673790,1736049046252,-179.87128046,0.00010409,2]
[347673791,1736049046262,-464.62,0.00010409,2]
[347673792,1736049046272,-212.11,0.00010409,2]
[347673793,1736049046282,-406.82304541,0.00010409,2]
[347673794,1736049046293,-500.0,0.00010409,2]
[347673795,1736049046303,-647.15,0.00010409,2]
[347673796,1736049046312,-500.0,0.00010409,2]
[347673797,1736049046321,-500.0,0.00010409,2]
[347673798,1736049046331,-500.0,0.00010409,2]
[347673799,1736049046341,-495.61648999,0.00010409,2]
[347673800,1736049046350,-500.0,0.00010409,2]
[347673801,1736049046359,-271.99,0.00010409,2]
[347673802,1736049046369,-598.97,0.00010409,2]
[347673803,1736049046378,-151.0,0.00010409,2]
[347673804,1736049046388,-514.53938375,0.00010409,2]
[347673805,1736049046398,-363.46923988,0.00010409,2]
[347673806,1736049046406,-500.0,0.00010409,2]
[347673807,1736049046416,-500.0,0.00010409,2]
[347673808,1736049046426,-252.73,0.00010409,2]
[347673809,1736049046436,-223.76,0.00010409,2]
[347673810,1736049046445,-500.0,0.00010409,2]
[347673811,1736049046454,-500.0,0.00010409,2]
[347673812,1736049046464,-500.0,0.00010409,2]
[347673813,1736049046473,-608.66,0.00010409,2]
[347673814,1736049046482,-469.42,0.00010409,2]
[347673815,1736049046492,-189.74,0.00010409,2]
[347673816,1736049046501,-500.0,0.00010409,2]
[347673817,1736049046511,-500.0,0.00010409,2]
[347673818,1736049046520,-1996.91,0.00010409,2]
[347673819,1736049046529,-245.8183568,0.00010409,2]
[347673820,1736049046538,-645.45871871,0.00010409,2]
[347673821,1736049046549,-182.39629131,0.00010409,2]
[347673822,1736049046558,-500.0,0.00010409,2]
[347673823,1736049046569,-500.0,0.00010409,2]
[347673824,1736049046581,-500.0,0.00010409,2]
[347673825,1736049046592,-500.0,0.00010409,2]
[347673826,1736049046603,-504.0,0.00010409,2]
[347673827,1736049046615,-641.67,0.00010409,2]
[347673828,1736049046626,-336.16529647,0.00010409,2]
[347673829,1736049046637,-218.10793392,0.00010409,2]
[347673830,1736049046647,-2860.72,0.00010409,2]
[347673831,1736049046657,-773.57,0.0001041,2]
[347673832,1736049046667,-500.0,0.0001041,2]
[347673833,1736049046677,-662.55,0.0001041,2]
[347673834,1736049046686,-945.12,0.0001041,2]
[347673835,1736049046696,-299.12915342,0.0001041,2]
[347673836,1736049046706,-500.0,0.0001041,2]
[347673837,1736049046716,-1301.06,0.0001041,2]
[347673838,1736049046726,-1000.0,0.00010429,2]
[347673839,1736049046735,-1090.84,0.00010461,2]
[347673840,1736049046745,-500.0,0.00010681,2]
[347673841,1736049046755,-500.0,0.00010681,2]
[347673842,1736049046765,-79.81744044,0.00010681,2]
[347673843,1736049047507,-260.42534033,0.00010135,2]
[347673844,1736049047520,-239.57465967,0.00010135,2]
[347673845,1736049047531,-500.0,0.00010408,2]
[347673846,1736049047541,-1965.49255956,0.00010681,2]
[347673847,1736049047550,-950.75,0.00010681,2]
[347673848,1736049047560,-500.0,0.00010681,2]
[347673849,1736049047570,-592.19,0.00010681,2]
[347673850,1736049047580,-500.0,0.00010681,2]
[347673851,1736049047590,-1278.05850362,0.00010681,2]
[347673852,1736049047600,-84.75149638,0.00010681,2]
[347673853,1736049047609,-227.5200682,0.00010681,2]
[347673854,1736049047622,-272.4799318,0.00010681,2]
[347673855,1736049047632,-500.0,0.00010681,2]
[347673856,1736049047641,-804.62,0.00010681,2]
[347673857,1736049047651,-500.0,0.00010681,2]
[347673858,1736049047661,-809.51,0.00010681,2]
[347673859,1736049047672,-523.71418173,0.00010681,2]
[347673860,1736049047682,-500.0,0.00010681,2]
[347673861,1736049047691,-504.99,0.00010681,2]
[347673862,1736049047704,-1298.8,0.00010681,2]
[347673863,1736049047715,-500.0,0.00010681,2]
[347673864,1736049047726,-500.0,0.00010681,2]
[347673865,1736049047736,-501.68,0.00010681,2]
[347673866,1736049047746,-680.54,0.00010682,2]
[347673867,1736049047757,-501.00906311,0.00010682,2]
[347673868,1736049047767,-611.39071368,0.00010682,2]
[347673869,1736049047778,-500.0,0.00010682,2]
[347673870,1736049047791,-500.0,0.00010682,2]
[347673871,1736049047803,-540.53703169,0.00010682,2]
[347673872,1736049047813,-500.0,0.00010682,2]
[347673873,1736049047823,-500.0,0.00010682,2]
[347673874,1736049047832,-500.0,0.00010682,2]
[347673875,1736049047843,-406.08,0.00010682,2]
[347673876,1736049047853,-500.0,0.00010682,2]
[347673877,1736049047863,-153.46410582,0.00010682,2]
[347673878,1736049047876,-346.53589418,0.00010682,2]
[347673879,1736049047886,-500.0,0.00010682,2]
[347673880,1736049047897,-500.0,0.00010682,2]
[347673881,1736049047907,-231.78200415,0.00010682,2]
[347673882,1736049047920,-268.21799585,0.00010682,2]
[347673883,1736049047930,-608.29,0.00010682,2]
[347673884,1736049047939,-120.79887823,0.00010682,2]
[347673885,1736049047959,-95.78178177,0.00010682,2]
[347673886,1736049047969,-413.7751072,0.00010682,2]
[347673887,1736049047981,-86.2248928,0.00010682,2]
[347673888,1736049047992,-190.43,0.00010682,2]
[347673889,1736049048005,-242.42340202,0.00010682,2]
[347673890,1736049048016,-257.57659798,0.00010682,2]
[347673891,1736049048026,-194.05018689,0.00010682,2]
[347673892,1736049048038,-305.94981311,0.00010682,2]
[347673893,1736049048047,-205.95622391,0.00010682,2]
[347673894,1736049048059,-294.04377609,0.00010682,2]
[347673895,1736049048068,-500.0,0.00010682,2]
[347673896,1736049048078,-191.70622543,0.00010682,2]
[347673897,1736049048090,-105.61377457,0.00010682,2]
[347673898,1736049048100,-500.0,0.00010682,2]
[347673899,1736049048109,-500.0,0.00010682,2]
[347673900,1736049048118,-444.19,0.00010682,2]
[347673901,1736049048128,-275.84,0.00010682,2]
[347673902,1736049048138,-212.8,0.00010682,2]
[347673903,1736049048147,-271.09775,0.00010682,2]
[347673904,1736049048157,-500.0,0.00010682,2]
[347673905,1736049048167,-500.0,0.00010682,2]
[347673906,1736049048177,-500.0,0.00010682,2]
[347673907,1736049048188,-500.0,0.00010682,2]
[347673908,1736049048197,-368.28733568,0.00010682,2]
[347673909,1736049048209,-131.71266432,0.00010682,2]
[347673910,1736049048218,-484.06,0.00010682,2]
[347673911,1736049048227,-141.47803694,0.00010682,2]
[347673912,1736049048282,-358.52196306,0.00010682,2]
[347673913,1736049048292,-567.99,0.00010682,2]
[347673914,1736049048302,-374.51,0.00010682,2]
[347673915,1736049048311,-500.0,0.00010682,2]
[347673916,1736049048321,-500.0,0.00010682,2]
[347673917,1736049048330,-500.0,0.00010682,2]
[347673918,1736049048340,-500.0,0.00010682,2]
[347673919,1736049048349,-500.0,0.00010682,2]
[347673920,1736049048359,-500.0,0.00010682,2]
[347673921,1736049048368,-500.0,0.00010682,2]
[347673922,1736049048378,-500.0,0.00010682,2]
[347673923,1736049048388,-375.69,0.00010682,2]
[347673924,1736049048397,-500.0,0.00010682,2]
[347673925,1736049048407,-500.0,0.00010682,2]
[347673926,1736049048416,-500.0,0.00010682,2]
[347673927,1736049048426,-500.0,0.00010682,2]
[347673928,1736049048436,-871.92,0.00010682,2]
[347673929,1736049048445,-500.0,0.00010682,2]
[347673930,1736049048454,-500.0,0.00010682,2]
[347673931,1736049048463,-500.0,0.00010682,2]
[347673932,1736049048472,-500.0,0.00010682,2]
[347673933,1736049048482,-388.96803694,0.00010682,2]
[347673934,1736049048494,-111.03196306,0.00010682,2]
[347673935,1736049048503,-330.47443331,0.00010682,2]
[347673936,1736049048515,-169.52556669,0.00010682,2]
[347673937,1736049048525,-500.0,0.00010682,2]
[347673938,1736049048535,-500.0,0.00010682,2]
[347673939,1736049048545,-500.0,0.00010682,2]
[347673940,1736049048554,-547.21,0.00010682,2]
[347673941,1736049048564,-500.0,0.00010682,2]
[347673942,1736049048574,-500.0,0.00010682,2]
[347673943,1736049048583,-502.88316519,0.00010682,2]
[347673944,1736049048593,-246.46314412,0.00010682,2]
[347673945,1736049048604,-253.53685588,0.00010682,2]
[347673946,1736049048615,-436.532125,0.00010682,2]
[347673947,1736049048624,-500.0,0.00010682,2]
[347673948,1736049048634,-500.0,0.00010682,2]
[347673949,1736049048644,-2.98251743,0.00010682,2]
[347673950,1736049048656,-497.01748257,0.00010682,2]
[347673951,1736049048665,-500.0,0.00010682,2]
[347673952,1736049048674,-500.0,0.00010682,2]
[347673953,1736049048684,-405.56247029,0.00010682,2]
[347673954,1736049048696,-108.44774897,0.00010682,2]
[347673955,1736049048706,-142.43125085,0.00010682,2]
[347673956,1736049048724,-357.56874915,0.00010682,2]
[347673957,1736049048734,-249.89727436,0.00010682,2]
[347673958,1736049048745,-250.10272564,0.00010682,2]
[347673959,1736049048755,-248.87813655,0.00010682,2]
[347673960,1736049048764,-0.39913826,0.00010682,2]
[347673961,1736049048776,-499.60086174,0.00010682,2]
[347673962,1736049048785,-500.0,0.00010682,2]
[347673963,1736049048795,-667.38,0.00010682,2]
[347673964,1736049048804,-459.92665776,0.00010682,2]
[347673965,1736049048814,-500.0,0.00010682,2]
[347673966,1736049048823,-1168.24781951,0.00010682,2]
[347673967,1736049048835,-669.15218049,0.00010682,2]
[347673968,1736049048844,-500.0,0.00010682,2]
[347673969,1736049048853,-500.0,0.00010682,2]
[347673970,1736049048862,-927.68,0.00010682,2]
[347673971,1736049048872,-500.0,0.00010682,2]
[347673972,1736049048881,-438.24445215,0.00010682,2]
[347673973,1736049048890,-1392.15817285,0.00010682,2]
[347673974,1736049048926,-264.94182715,0.00010682,2]
[347673975,1736049048936,-500.0,0.00010682,2]
[347673976,1736049048945,-251.68035848,0.00010682,2]
[347673977,1736049048957,-3477.61,0.00010682,2]
[347673978,1736049048966,-500.0,0.00010682,2]
[347673979,1736049048976,-706.57,0.00010682,2]
[347673980,1736049048986,-212.43646993,0.00010682,2]
[347673981,1736049048995,-477.45827176,0.00010682,2]
[347673982,1736049049005,-627.86098554,0.00010682,2]
[347673983,1736049049015,-541.84,0.00010682,2]
[347673984,1736049049024,-500.0,0.00010682,2]
[347673985,1736049049034,-500.0,0.00010682,2]
[347673986,1736049049043,-422.79743739,0.00010682,2]
[347673987,1736049049053,-500.0,0.00010682,2]
[347673988,1736049049063,-629.43,0.00010682,2]
[347673989,1736049049072,-844.85,0.00010682,2]
[347673990,1736049049081,-374.26799413,0.00010682,2]
[347673991,1736049049091,-745.57,0.00010682,2]
[347673992,1736049049100,-500.0,0.00010682,2]
[347673993,1736049049110,-500.0,0.00010682,2]
[347673994,1736049049120,-320.76809571,0.00010682,2]
[347673995,1736049049129,-204.10469539,0.00010682,2]
[347673996,1736049049139,-500.0,0.00010682,2]
[347673997,1736049049149,-1245.59,0.00010682,2]
[347673998,1736049049159,-500.0,0.00010682,2]
[347673999,1736049049169,-500.0,0.00010682,2]
[347674000,1736049049179,-500.0,0.00010682,2]
[347674001,1736049049189,-662.33,0.00010682,2]
[347674002,1736049049199,-500.0,0.00010682,2]
[347674003,1736049049209,-500.0,0.00010682,2]
[347674004,1736049049219,-1360.61,0.00010682,2]
[347674005,1736049049228,-1506.11,0.00010682,2]
[347674006,1736049049238,-500.0,0.00010682,2]
[347674007,1736049049247,-1276.2,0.00010682,2]
[347674008,1736049049257,-500.0,0.00010682,2]
[347674009,1736049049267,-500.0,0.00010682,2]
[347674010,1736049049276,-500.0,0.00010682,2]
[347674011,1736049049286,-492.86723283,0.00010682,2]
[347674012,1736049049295,-247.03,0.00010682,2]
[347674013,1736049049305,-443.60988287,0.00010682,2]
[347674014,1736049049314,-500.0,0.00010682,2]
[347674015,1736049049323,-312.15510691,0.00010682,2]
[347674016,1736049049334,-500.0,0.00010682,2]
[347674017,1736049049344,-500.0,0.00010682,2]
[347674018,1736049049354,-500.0,0.00010682,2]
[347674019,1736049049363,-650.28,0.00010682,2]
[347674020,1736049049373,-569.27488791,0.00010682,2]
[347674021,1736049049383,-739.47,0.00010682,2]
[347674022,1736049049393,-329.26739351,0.00010682,2]
[347674023,1736049049726,-151.75,0.00010634,2]
[347674024,1736049049737,-170.73260649,0.00010682,2]
[347674025,1736049049748,-904.6,0.00010682,2]
[347674026,1736049049757,-168.72500503,0.00010682,2]
[347674027,1736049049768,-426.39003585,0.00010683,2]
[347674028,1736049049783,-637.0268055,0.00010683,2]
[347674029,1736049049794,-285.39989586,0.00010683,2]
[347674030,1736049049805,-320.17,0.00010683,2]
[347674031,1736049049815,-500.0,0.00010683,2]
[347674032,1736049049828,-500.0,0.00010683,2]
[347674033,1736049049839,-500.0,0.00010683,2]
[347674034,1736049049848,-152.05188767,0.00010683,2]
[347674035,1736049049862,-429.18811233,0.00010683,2]
[347674036,1736049049872,-125.09137417,0.00010683,2]
[347674037,1736049050398,-181.04622845,0.00010683,2]
[347674038,1736049050408,-282.05822708,0.00010683,2]
[347674039,1736049050417,-232.19607704,0.00010683,2]
[347674040,1736049050427,-487.03,0.00010683,2]
[347674041,1736049050437,-293.09470526,0.00010683,2]
[347674042,1736049050446,-207.93,0.00010683,2]
[347674043,1736049050455,-151.0,0.00010683,2]
[347674044,1736049050463,-500.0,0.00010683,2]
[347674045,1736049050472,-500.0,0.00010683,2]
[347674046,1736049050481,-500.0,0.00010683,2]
[347674047,1736049050490,-499.77827883,0.00010683,2]
[347674048,1736049050499,-396.07927636,0.00010683,2]
[347674049,1736049050509,-460.17311772,0.00010683,2]
[347674050,1736049050517,-1996.91,0.00010683,2]
[347674051,1736049050527,-500.0,0.00010683,2]
[347674052,1736049050535,-500.0,0.00010683,2]
[347674053,1736049050544,-241.26577246,0.00010683,2]
[347674054,1736049050553,-237.93148364,0.00010683,2]
[347674055,1736049050563,-2860.72,0.00010683,2]
[347674056,1736049050572,-500.0,0.00010684,2]
[347674057,1736049050582,-662.55,0.00010684,2]
[347674058,1736049050591,-945.12,0.00010684,2]
[347674059,1736049050601,-500.0,0.00010684,2]
[347674060,1736049050610,-1301.06,0.00010684,2]
[347674061,1736049050619,-369.3,0.00010691,2]
[347674062,1736049050630,-2680.17118778,0.000108,5]
[347674063,1736049050852,-287.51096451,0.000108,5]
[347674064,1736049050863,-908.52623999,0.000108,5]
[347674065,1736049050874,-1108.25808611,0.000108,5]
[347674066,1736049050909,-500.0,0.00010134,2]
[347674067,1736049050918,-500.0,0.00010134,2]
[347674068,1736049050928,-573.53352161,0.000108,5]
[347674069,1736049050937,-150.0,0.00010825,2]
[347674070,1736049050946,-150.0,0.00010825,2]
[347674071,1736049050956,-150.00000001,0.00010825,2]
[347674072,1736049050965,-153.07852131,0.00010825,2]
[347674073,1736049050978,-500.0,0.00010955,2]
[347674074,1736049050987,-500.0,0.00010955,2]
[347674075,1736049050996,-2045.31,0.00010955,2]
[347674076,1736049051005,-950.75,0.00010955,2]
[347674077,1736049051015,-500.0,0.00010955,2]
[347674078,1736049051024,-592.19,0.00010955,2]
[347674079,1736049051033,-501.64930246,0.00010955,2]
[347674080,1736049051042,-500.0,0.00010955,2]
[347674081,1736049051052,-1362.81,0.00010955,2]
[347674082,1736049051062,-500.0,0.00010955,2]
[347674083,1736049051071,-500.0,0.00010955,2]
[347674084,1736049051080,-500.0,0.00010955,2]
[347674085,1736049051089,-804.62,0.00010955,2]
[347674086,1736049051098,-193.44920724,0.00010955,2]
[347674087,1736049051107,-809.51,0.00010955,2]
[347674088,1736049051116,-500.0,0.00010955,2]
[347674089,1736049051125,-504.99,0.00010955,2]
[347674090,1736049051135,-1171.04896586,0.00010955,2]
[347674091,1736049051147,-127.75103414,0.00010955,2]
[347674092,1736049051156,-500.0,0.00010955,2]
[347674093,1736049051165,-680.54,0.00010956,2]
[347674094,1736049051174,-276.63,0.00010956,2]
[347674095,1736049051183,-214.14,0.00010956,2]
[347674096,1736049051192,-500.0,0.00010956,2]
[347674097,1736049051201,-500.0,0.00010956,2]
[347674098,1736049051210,-500.0,0.00010956,2]
[347674099,1736049051219,-500.0,0.00010956,2]
[347674100,1736049051229,-500.0,0.00010956,2]
[347674101,1736049051238,-216.58066,0.00010956,2]
[347674102,1736049051247,-281.81,0.00010956,2]
[347674103,1736049051256,-500.0,0.00010956,2]
[347674104,1736049051265,-500.0,0.00010956,2]
[347674105,1736049051274,-500.0,0.00010956,2]
[347674106,1736049051284,-500.0,0.00010956,2]
[347674107,1736049051294,-230.29,0.00010956,2]
[347674108,1736049051303,-271.09775,0.00010956,2]
[347674109,1736049051312,-272.18,0.00010956,2]
[347674110,1736049051322,-500.0,0.00010956,2]
[347674111,1736049051331,-500.0,0.00010956,2]
[347674112,1736049051340,-175.96,0.00010956,2]
[347674113,1736049051350,-309.89,0.00010956,2]
[347674114,1736049051359,-173.01,0.00010956,2]
[347674115,1736049051368,-500.0,0.00010956,2]
[347674116,1736049051378,-500.0,0.00010956,2]
[347674117,1736049051387,-500.0,0.00010956,2]
[347674118,1736049051396,-314.25441653,0.00010956,2]
[347674119,1736049051405,-500.0,0.00010956,2]
[347674120,1736049051415,-500.0,0.00010956,2]
[347674121,1736049051424,-500.0,0.00010956,2]
[347674122,1736049051433,-500.0,0.00010956,2]
[347674123,1736049051443,-500.0,0.00010956,2]
[347674124,1736049051451,-500.0,0.00010956,2]
[347674125,1736049051461,-500.0,0.00010956,2]
[347674126,1736049051470,-500.0,0.00010956,2]
[347674127,1736049051479,-871.92,0.00010956,2]
[347674128,1736049051488,-500.0,0.00010956,2]
[347674129,1736049051497,-500.0,0.00010956,2]
[347674130,1736049051507,-500.0,0.00010956,2]
[347674131,1736049051516,-500.0,0.00010956,2]
[347674132,1736049051525,-500.0,0.00010956,2]
[347674133,1736049051534,-500.0,0.00010956,2]
[347674134,1736049051543,-500.0,0.00010956,2]
[347674135,1736049051552,-91.68639933,0.00010956,2]
[347674136,1736049226521,1863.0,0.0001961,120]
[347674137,1736049762314,-1000.0,0.00013698,30]
[347674138,1736049762342,-1000.0,0.00013698,30]
[347674139,1736049762372,-1000.0,0.00013698,30]
[347674140,1736049762399,-492.51796482,0.00013698,30]
[347674141,1736049762844,-1826.28058355,0.00013,15]
[347674142,1736049762901,-2173.71941645,0.00014654,14]
[347674143,1736049763342,-856.20145163,0.000151,30]
[347674145,1736050231648,-981.75,8.219e-05,2]
[347674146,1736050231657,-300.0,9.313e-05,2]
[347674147,1736050231667,-500.0,9.314e-05,2]
[347674148,1736050231678,-500.0,9.314e-05,2]
[347674149,1736050231688,-500.0,9.314e-05,2]
[347674150,1736050231697,-500.0,9.314e-05,2]
[347674151,1736050231707,-500.0,9.314e-05,2]
[347674152,1736050231716,-500.0,9.314e-05,2]
[347674153,1736050231725,-500.0,9.314e-05,2]
[347674154,1736050231735,-500.0,9.314e-05,2]
[347674155,1736050231744,-500.0,9.314e-05,2]
[347674156,1736050231754,-1000.0,9.314e-05,2]
[347674157,1736050231764,-500.0,9.314e-05,2]
[347674158,1736050231773,-500.0,9.314e-05,2]
[347674159,1736050231783,-500.0,9.314e-05,2]
[347674160,1736050231793,-500.0,9.314e-05,2]
[347674161,1736050231802,-500.0,9.314e-05,2]
[347674162,1736050231814,-14914.91840363,9.539e-05,2]
[347674163,1736050231827,-827.07290751,9.539e-05,2]
[347674164,1736050231838,-999.99998538,9.539e-05,2]
[347674165,1736050231909,-7158.00870348,9.539e-05,2]
[347674166,1736050231919,-667.07,9.568e-05,2]
[347674167,1736050231928,-500.0,9.588e-05,2]
[347674168,1736050231937,-500.0,9.588e-05,2]
[347674169,1736050231947,-500.0,9.588e-05,2]
[347674170,1736050231956,-500.0,9.588e-05,2]
[347674171,1736050231968,-500.0,9.588e-05,2]
[347674172,1736050231977,-500.0,9.588e-05,2]
[347674173,1736050231986,-500.0,9.588e-05,2]
[347674174,1736050231994,-500.0,9.588e-05,2]
[347674175,1736050232002,-500.0,9.588e-05,2]
[347674176,1736050232011,-1000.0,9.588e-05,2]
[347674177,1736050232021,-500.0,9.588e-05,2]
[347674178,1736050232030,-500.0,9.588e-05,2]
[347674179,1736050232039,-500.0,9.588e-05,2]
[347674180,1736050232049,-500.0,9.588e-05,2]
[347674181,1736050232058,-250.0,9.736e-05,2]
[347674182,1736050232067,-1000.0,9.786e-05,2]
[347674183,1736050232077,-500.0,9.862e-05,2]
[347674184,1736050232086,-500.0,9.862e-05,2]
[347674185,1736050232096,-500.0,9.862e-05,2]
[347674186,1736050232105,-500.0,9.862e-05,2]
[347674187,1736050232114,-500.0,9.862e-05,2]
[347674188,1736050232124,-500.0,9.862e-05,2]
[347674190,1736050232133,-500.0,9.862e-05,2]
[347674192,1736050232142,-500.0,9.862e-05,2]
[347674194,1736050232152,-500.0,9.862e-05,2]
[347674196,1736050232162,-1000.0,9.862e-05,2]
[347674198,1736050232171,-500.0,9.862e-05,2]
[347674200,1736050232180,-500.0,9.862e-05,2]
[347674202,1736050232190,-500.0,9.862e-05,2]
[347674204,1736050232199,-500.0,9.862e-05,2]
[347674206,1736050232209,-497.54,0.00010133,2]
[347674208,1736050232219,-9385.82,0.00010133,2]
[347674210,1736050232229,-9999.99,0.00010133,2]
[347674212,1736050232238,-150.99,0.00010133,2]